Cogmind - Beta 11.1 @@@ ROGUE MODE // 2022.07.24 @ 15:41:29 Player: Obelisk Result: Self-destructed Performance ------------- Evolutions (2) 1000 Regions Visited (4) 800 Robots Destroyed (46) 230 Value Destroyed (1053) 1053 Prototype IDs (3) 60 Alien Tech Used (0) 0 Bonus (0) 0 TOTAL SCORE: 3143 Bonus ------- None Cogmind --------- Core Integrity 344/550 Matter 279/300 Energy 15/240 System Corruption 0% Temperature Cool (73) Movement Walking (200) Ox1 Location -8/Materials Parts ------- > --- POWER (1) -------- Nuclear Core > --- PROPULSION (2) --- Improved Titanium Leg Improved Titanium Leg > --- UTILITY (5) ------ Small Storage Unit Visual Processing Unit Improved Sensor Array Recalibrator > --- WEAPON (3) ------- Beam Rifle Heavy Laser > --- INVENTORY (8) ---- Light Nuclear Core Light Treads Light Treads Improved Titanium Leg Improved Heat Sink Improved Signal Interpreter Hacking Suite Peak State ------------ > --- POWER ------------ Nuclear Core > --- PROPULSION ------- Improved Titanium Leg Improved Titanium Leg > --- UTILITY ---------- Improved Heat Sink Small Storage Unit Visual Processing Unit Improved Sensor Array Recalibrator > --- WEAPON ----------- Beam Rifle Heavy Laser Heavy Assault Rifle > --- INVENTORY -------- Improved Ion Engine Light Treads Light Treads Improved Titanium Leg Improved Heat Sink Improved Signal Interpreter Hacking Suite Particle Gun [Rating: 33] Favorites ----------- Power Nuclear Core Engine Heavy Ion Engine Power Core Nuclear Core Propulsion Light Treads Treads Light Treads Leg Improved Titanium Leg Utility Small Storage Unit Device Improved Sensor Array Storage Small Storage Unit Processor Visual Processing Unit Protection Medium Armor Plating Weapon Light Assault Rifle Energy Gun Beam Rifle Energy Cannon Particle Cannon Ballistic Gun Light Assault Rifle Ballistic Cannon Improved Light Cannon Launcher Grenade Launcher Build | -11 -10 -10 -9 -8 ------- Run | Scr Mat Min Mat Mat Slots Evolved 4 | . . . 2 2 Power . | . . . . . Propulsion . | . . . . . Utility 3 | . . . 1 2 Weapon 1 | . . . 1 . Parts Attached 34 | 6 2 . 14 12 Power 4 | 1 . . 2 1 Engine 3 | 1 . . 2 . Core 1 | . . . . 1 Reactor . | . . . . . Propulsion 7 | 2 . . 2 3 Treads 3 | 2 . . 1 . Leg 4 | . . . 1 3 Wheel . | . . . . . Hover . | . . . . . Flight . | . . . . . Utility 11 | 1 1 . 3 6 Device 6 | . . . 2 4 Storage 2 | 1 . . . 1 Processor 2 | . . . 1 1 Hackware . | . . . . . Protection 1 | . 1 . . . Artifact . | . . . . . Weapon 12 | 2 1 . 7 2 Energy Gun 2 | . . . 1 1 Energy Cannon 1 | . . . 1 . Ballistic Gun 7 | 2 . . 4 1 Ballistic Cannon 1 | . . . 1 . Launcher 1 | . 1 . . . Special Weapon . | . . . . . Impact Weapon . | . . . . . Slashing Weapon . | . . . . . Piercing Weapon . | . . . . . Special Melee Weapon . | . . . . . Unidentified Prototypes 1 | . . . 1 . Parts Lost 12 | . . . 7 5 Power . | . . . . . Propulsion 3 | . . . 2 1 Utility 4 | . . . 3 1 Weapon 5 | . . . 2 3 Highest Loss Streak 4 | . . . 4 2 To Critical Strikes . | . . . . . Average Slot Usage (%) 93 | . 98 100 89 94 Engine 7 | . 14 14 11 1 Core 3 | . . . . 7 Treads 11 | . 28 28 16 1 Leg 6 | . . . 1 13 Device 15 | . . . 14 22 Storage 8 | . 14 14 6 9 Processor 7 | . . . 4 11 Protection 3 | . 13 14 3 . Energy Gun 5 | . . . . 10 Energy Cannon 1 | . . . 2 . Ballistic Gun 15 | . 18 14 22 9 Ballistic Cannon 3 | . . . 2 5 Launcher 3 | . 10 14 4 . Naked Turns . | . . . . . Heaviest Build 27 | 13 22 22 27 25 Greatest Support 40 | 40 40 40 40 40 Greatest Overweight (x) 4 | . . . 4 1 Average Overweight (x) . | . . . . . Largest Inventory Capacity 8 | 8 8 8 8 8 Average Capacity 7 | 6 8 8 6 7 Most Carried 8 | 5 1 1 5 8 Average Carried 3 | 1 . 1 2 5 Final Capacity 8 | 8 8 8 5 8 Final Carried 7 | . 1 1 4 7 Class Distribution -------------------- 33% | Mutant 32% | Skirmisher 25% | Scavenger-Skirmisher 8% | Tank Dominant Class ---------------- Mutant | -10/Materials Mutant | -10/Mines Skirmisher | -9/Materials Scavenger-Skirmisher | -8/Materials Resources | -11 -10 -10 -9 -8 ----------- Run | Scr Mat Min Mat Mat Matter Collected 1039 | 232 91 19 228 469 Remotely . | . . . . . Salvage Created 1224 | . 191 19 302 712 Parts 92 | . 26 5 22 39 Haulers Intercepted . | . . . . . Recyclers Shooed . | . . . . . Parts Field Recycled . | . . . . . Retrieved Matter . | . . . . . Parts Self-Destructed . | . . . . . Prevented . | . . . . . Kills | -11 -10 -10 -9 -8 ------- Run | Scr Mat Min Mat Mat Combat Hostiles Destroyed 33 | . 4 3 14 12 Guns 19 | . . . 11 8 Cannons 7 | . . . 3 4 AOE 7 | . 4 3 . . Classes Destroyed 10 | . 8 . 2 . Builder 2 | . 2 . . . Tunneler 1 | . 1 . . . Recycler 2 | . 1 . . 1 Mechanic 2 | . 1 . . 1 Operator 1 | . 1 . . . Watcher 5 | . 2 . 1 2 Swarmer 18 | . 3 3 10 2 Grunt 9 | . 1 . 1 7 Duelist 2 | . . . 1 1 Sentry 4 | . . . 2 2 Best Kill Streak 7 | . 7 3 4 5 Combat Bots Only 4 | . 3 3 4 4 Max Kills in Single Turn 4 | . 4 3 2 1 Gunslinging 1 | . . . 1 . Exploded 3 | . 3 3 . . Melee . | . . . . . Uniques/NPCs Destroyed . | . . . . . Combat | -11 -10 -10 -9 -8 -------- Run | Scr Mat Min Mat Mat Damage Taken 2376 | . 181 17 1065 1113 Core 474 | . 24 9 235 206 Absorbed by Shields . | . . . . . Core Remaining (%) 75 | 100 . 86 41 . Volleys Fired 110 | 1 12 1 49 47 Largest 3 | 2 2 2 3 3 Hottest 148 | 40 50 50 127 148 Shots Fired 272 | 2 22 2 110 136 Gun 222 | 2 12 1 87 120 Cannon 34 | . . . 18 16 Launcher 16 | . 10 1 5 . Special . | . . . . . Kinetic 197 | 2 12 1 100 82 Thermal 59 | . . . 5 54 Explosive 16 | . 10 1 5 . Electromagnetic . | . . . . . Robot Hit Streak 8 | . 5 1 8 6 Robot Miss Streak 5 | . 3 1 5 4 Penetration Max . | . . . . . Secondary Targets 7 | . . . 4 3 Max Gunslinging Chain 1 | . . . 1 1 Shots Hit Robots 151 | . 8 1 63 79 Core Hits 88 | . 24 3 21 40 Critical Kills . | . . . . . Critical Parts Destroyed 1 | . . . . 1 Critical Strikes 7 | . . . . 7 Burn 6 | . . . . 6 Destroy 1 | . . . . 1 Melee Attacks . | . . . . . Impact . | . . . . . Slashing . | . . . . . Piercing . | . . . . . Sneak Attacks . | . . . . . Combat Hostiles . | . . . . . Follow-up Attacks . | . . . . . Damage Inflicted 2623 | . 465 111 797 1250 Guns 1569 | . 59 . 512 998 Cannons 480 | . . . 228 252 Explosions 574 | . 406 111 57 . Melee . | . . . . . Ramming . | . . . . . Kinetic 1454 | . 59 . 679 716 Thermal 595 | . . . 61 534 Explosive 538 | . 370 111 57 . Electromagnetic 36 | . 36 . . . Impact . | . . . . . Slashing . | . . . . . Piercing . | . . . . . Highest Corruption . | . . . . . Average Corruption . | . . . . . Corruption Purged . | . . . . . Corruption Blocked . | . . . . . Overload Shots . | . . . . . Overflow Damage 10 | . . . 10 . Projectiles 10 | . . . 10 . Explosions . | . . . . . Melee . | . . . . . Knockbacks 3 | . . . 1 2 Impact . | . . . . . Kinetic 3 | . . . 1 2 Secondary . | . . . . . Self-Inflicted Damage 18 | . 18 . . . Shots 2 | . 2 . . . Rammed . | . . . . . Targets Rammed . | . . . . . Kicked . | . . . . . Crushed . | . . . . . Highest Temperature 298 | . 9 . 298 213 Average Temperature 73 | . 5 . 103 56 Received Heat Transfer 720 | . 12 . 78 630 Effects 3 | . . . 3 . Energy Bleed 1 | . . . 1 . Interference 2 | . . . 2 . Siege Activations . | . . . . . Robots Corrupted . | . . . . . Combat Hostiles . | . . . . . Parts Fried . | . . . . . Impact Corruptions . | . . . . . Robots Melted . | . . . . . Combat Hostiles . | . . . . . Parts Melted 1 | . . . . 1 Heat Transferred 1850 | . . . 111 1739 Parts Sabotaged . | . . . . . Parts Stolen . | . . . . . Parts Stripped . | . . . . . Power Chain Reactions 1 | . 1 . . . Missiles Intercepted . | . . . . . Alert | -11 -10 -10 -9 -8 ------- Run | Scr Mat Min Mat Mat Peak Influence 400 | . 354 229 383 400 Initial 138 | . . 138 89 125 Average 215 | . 154 165 243 222 Maximum Alert Level 2 | . 1 1 1 2 Low Security (%) 36 | 100 53 69 21 38 Level 1 61 | . 46 30 78 57 Level 2 1 | . . . . 4 Level 3 . | . . . . . Level 4 . | . . . . . Level 5 . | . . . . . High Security . | . . . . . Max Security . | . . . . . Squads Dispatched 1 | . 1 . . . Investigation . | . . . . . Extermination . | . . . . . Reinforcement 1 | . 1 . . . Assault . | . . . . . Garrison . | . . . . . Intercept . | . . . . . Searches Triggered . | . . . . . Construction Impeded . | . . . . . Haulers Reinforced . | . . . . . Active Scanning Responses . | . . . . . Cargo Convoy Interrupts . | . . . . . Stealth | -11 -10 -10 -9 -8 --------- Run | Scr Mat Min Mat Mat Distress Signals 5 | . 1 . 1 3 Communications Jammed . | . . . . . Distress Signals . | . . . . . Times Spotted 61 | . 7 3 17 34 Peak Tracking Total 10 | . 4 3 4 10 Tactical Retreats 7 | . . . 1 6 Traps | -11 -10 -10 -9 -8 ------- Run | Scr Mat Min Mat Mat Traps Triggered . | . . . . . Indirectly . | . . . . . Trap Hack Attempts . | . . . . . Triggered . | . . . . . Disarmed . | . . . . . Reprogrammed . | . . . . . Reused . | . . . . . Traps Extracted . | . . . . . Installed . | . . . . . Triggered . | . . . . . Machines | -11 -10 -10 -9 -8 ---------- Run | Scr Mat Min Mat Mat Machines Disabled 3 | . 2 . 1 . Max in Single Turn 1 | . 1 . 1 . Machines Sabotaged . | . . . . . Garrisons Compromised . | . . . . . Overloaded Fab Kills . | . . . . . Hacking | -11 -10 -10 -9 -8 --------- Run | Scr Mat Min Mat Mat Machines Accessed 2 | . . . 1 1 Terminals 1 | . . . . 1 Fabricators . | . . . . . Repair Stations . | . . . . . Recycling Units . | . . . . . Scanalyzers 1 | . . . 1 . Garrison Access . | . . . . . Total Hacks 3 | . . . 2 1 Successful 3 | . . . 2 1 Failed . | . . . . . Catastrophic . | . . . . . Database Lockouts . | . . . . . Manual . | . . . . . Terminals 1 | . . . . 1 Fabricators . | . . . . . Repair Stations . | . . . . . Recycling Units . | . . . . . Scanalyzers 2 | . . . 2 . Garrison Access . | . . . . . Terminal Hacks 1 | . . . . 1 Prototype ID Bank 1 | . . . . 1 Fabricator Hacks . | . . . . . Repair Station Hacks . | . . . . . Recycling Unit Hacks . | . . . . . Scanalyzer 2 | . . . 2 . Insert Component 1 | . . . 1 . Analyze 1 | . . . 1 . Garrison Access Hacks . | . . . . . Unauthorized Hacks . | . . . . . Terminals . | . . . . . Fabricators . | . . . . . Repair Stations . | . . . . . Recycling Units . | . . . . . Scanalyzers . | . . . . . Garrison Access . | . . . . . Data Cores Recovered . | . . . . . Used . | . . . . . Hacking Detections . | . . . . . Full Trace Events . | . . . . . Feedback Events . | . . . . . Feedback Blocked . | . . . . . Robot Schematics Acquired . | . . . . . Robots Built . | . . . . . Authchips . | . . . . . Time . | . . . . . Total Robot Build Rating . | . . . . . Part Schematics Acquired 1 | . . . 1 . Parts Built . | . . . . . Authchips . | . . . . . Time . | . . . . . Total Part Build Rating . | . . . . . Parts Repaired . | . . . . . Time . | . . . . . Parts Recycled . | . . . . . Recycled Matter . | . . . . . Retrieved Matter . | . . . . . Retrieved Components . | . . . . . Parts Scanalyzed 1 | . . . 1 . Part Schematics Acquired 1 | . . . 1 . Parts Damaged . | . . . . . Bothacking | -11 -10 -10 -9 -8 ------------ Run | Scr Mat Min Mat Mat Used RIF Installer . | . . . . . Robots Hacked . | . . . . . Non-combat . | . . . . . Combat . | . . . . . Robot Hacks Applied . | . . . . . Relay Couplers Released . | . . . . . Fabnet Peak Effective % . | . . . . . Robots Rewired . | . . . . . Allies Hacked . | . . . . . Hacks Repelled . | . . . . . Allies | -11 -10 -10 -9 -8 -------- Run | Scr Mat Min Mat Mat Total Allies . | . . . . . Largest Group . | . . . . . Highest-Rated Group . | . . . . . Highest-Rated Ally . | . . . . . Total Orders . | . . . . . Ally Attacks . | . . . . . Total Damage . | . . . . . Kills . | . . . . . Allies Corrupted . | . . . . . Allies Melted . | . . . . . Intel | -11 -10 -10 -9 -8 ------- Run | Scr Mat Min Mat Mat Robot Analysis Total . | . . . . . Derelict Logs Recovered . | . . . . . Drone Launches . | . . . . . Drone Recoveries . | . . . . . Exploration | -11 -10 -10 -9 -8 ------------- Run | Scr Mat Min Mat Mat Turns Passed 1644 | 45 137 106 628 728 Spaces Moved 697 | 29 62 65 276 265 Core 17 | 13 . . 4 . Treads 433 | 16 62 65 238 52 Legs 247 | . . . 34 213 Wheels . | . . . . . Hover . | . . . . . Flight . | . . . . . Fastest Speed 50 | 50 160 160 160 130 Average Speed 174 | 110 160 160 165 198 Slowest Speed 250 | 160 160 160 250 240 Overloaded Moves . | . . . . . Propulsion Burnouts . | . . . . . Robots Hopped . | . . . . . Cave-ins Triggered . | . . . . . Exploration Rate (%) 21 | 3 22 27 29 25 Regions Visited 4 Branch Regions 1 Pre-discovered Areas . | . . . . . Known Exits Taken . | . . . . . Unknown Exits Taken 4 | 1 1 1 1 . Scrap Searched . | . . . . . Spaces Dug . | . . . . . Terrain Destroyed 85 | . 55 7 22 1 Melee . | . . . . . Projectile 1 | . . . . 1 AOE 84 | . 55 7 22 . Terrain Rammed . | . . . . . Walls Destroyed . | . . . . . Machines Disabled . | . . . . . Actions | -11 -10 -10 -9 -8 --------- Run | Scr Mat Min Mat Mat Total 911 | 40 77 65 360 369 Wait 24 | . . . 1 23 Move 693 | 28 61 64 275 265 Hop . | . . . . . Pick Up 38 | 5 2 . 15 16 Fast Attach 3 | 1 . . . 2 Attach 19 | 5 1 . 7 6 Detach . | . . . . . Swap 12 | . 1 . 7 4 Drop 12 | . . . 6 6 Fire 110 | 1 12 1 49 47 Melee . | . . . . . Ram . | . . . . . Kick . | . . . . . Crush . | . . . . . Escape Stasis . | . . . . . Rewire . | . . . . . Trap . | . . . . . Miscellaneous . | . . . . . Route ------- -11/Scrapyard -10/Materials -10/Mines -9/Materials -8/Materials History --------- Turn | Location | Event 12 | -11/Scrapyard | Discovered new exit (range 15) 46 | -11/Scrapyard | Entered Materials 162 | -10/Materials | Discovered new exit (range 11) 183 | -10/Materials | Entered Mines 278 | -10/Mines | Discovered new exit (range 9) 289 | -10/Mines | Entered Materials 289 | -9/Materials | Evolved 2 slots: Utility x1, Weapon x1 770 | -9/Materials | Discovered new exit (range 16) 800 | -9/Materials | Core integrity fell below 50% 828 | -9/Materials | Lost 4 parts (1n2u1w) 917 | -9/Materials | Entered another Materials area 917 | -8/Materials | Evolved 2 slots: Utility x2 1645 | -8/Materials | Self-destructed Last Messages --------------- W-25 Informer destroyed. K-01 Serf collects debris. Acquired 47 matter. K-01 Serf collects debris. Acquired 60 matter. K-01 Serf collects debris. Acquired Particle Gun. Acquired 38 matter. K-01 Serf collects debris. Acquired Hvy. Laser. Dropped Particle Gun. Dropped Imp. Ion Engine. Acquired Lgt. Nuclear Core. W-25 Informer destroyed. Critical hit (Burn: +37). G-47 Trooper suffers critical hit (Burn). Hvy. Assault Rifle destroyed. Terminal disabled. Critical hit (Burn: +37). Imp. Heat Sink destroyed. Map ----- +----------------------------------------------------+ | ????????????????????????????????????????#*#????? | | ???????????????????????????????????????##%##???? | | ???????????????????????????????????????#*=!#???? | | ???????????????????????????????????????#%! #???? | | ???????????????????????????????????????#! #???? | | ???????????????????????????????????????# #???? | | ???????????????????????????????????????# #???? | | ???????????????????????????????????????# #???? | | ???????????????????????????????????????# = #???? | | ???????????????????????????????????????#!= #???? | | ?????????????????????????????? ??????#= !#???? | | ?????????????????????????????# #?????#% #???? | | ?????????????????????????????# #?????#[%=#???? | | ?????????????????????????????# #?????# #???? | | ?????????????????????????????# ####### * #???? | | ??????????????????###????????# ## ## #???? | | ??????????????????? ?????# ## ## #???? | | ??????????????????? """?????# ## + #???? | | ???????????????????? """?????# ## ## #???? | | ???????????????????? """?????# ## ## #???? | | ????????????????????? ?????# ## ## #???? | | ????????????????????? ?????# ## ## #???? | | ???????????##+########;####### ###+### #### | | ??????????## !%! u | | ??????????#T g g = | | ???????????# g @ | | ???????????# g "#####################+###### | | ???????????# [ #???????????????# #? | | ???????? " ???????????????# #? | | ?????# ???????????????# """ """ #? | | ??????### ???????????????# """ """ #? | | ????????# ##########???????????????# """ """ #? | | ??????? + ??????????????????????????# #? | | ??????? #???????????????????????????# #? | | ????????????????????????????????????? ?? | | ???????????????????????????????????????#####???? | | ???????????????????????????????????????????????? | | ???????????????????????????????????????????????? | | ???????????????????????????????????????????????? | | ???????????????????????????????????????????????? | | ???????????????????????????????????????????????? | | | | | | | | | | | | | | | | | | | +----------------------------------------------------+ Best States ------------- Heat Dissipation 45 Energy Generation 14 Energy Capacity 280 Matter Stores 300 Matter Capacity 300 Sight Range 18 Robot Scan Range 15 Terrain Scan Range 16 Terrain Scan Density 10 Armor Coverage 225 Evasion (%) 55 Recoil Reduction 2 Item Schematics ----------------- Imp. Sensor Array | -9/Materials | Scanalyzed Robot Schematics ------------------ None Fabricated ------------ Nothing Alien Tech Used ----------------- None Achievements -------------- None Challenges ------------ None Game ------ Seed CargoMatterShield Manual? 0 Play Time 00:16:15 Cumulative 14.9 hours Start 2022.07.24 @ 15:25:43 End 2022.07.24 @ 15:41:29 Sessions 1 Manual Loads 0 Difficulty Rogue Special Mode None Game No. 41 Rogue 41 Adventurer 0 Explorer 0 Win Type - Total 0 Types 0/0/0/0/0/0/0/0/0 Lore% 21 Gallery% 20 Achievement% 17 Wizard Run 0 Options --------- ASCII 0 Keyboard 0 Movement Mouse Keybinds 0 Fullscreen 1 Font 14/SmallcapsGlow Map View 84x54 Tactical HUD 0 Map Filters NONE Filters NONE Steam 1 RUN: 36c60808-648b-412a-8e9b-bd04117f52c4